fUSD/lending_fUSD_20250101
["ID","MTS","AMOUNT","RATE_DAILY","PERIOD"]
[347341432,1735712184958,-2945.76,0.0001104,2]
[347341433,1735712184981,-10736.82,0.0001104,2]
[347341434,1735712185004,-3135.74,0.0001104,2]
[347341435,1735712185031,-5574.8,0.0001104,2]
[347341436,1735712185054,-1259.18,0.0001104,2]
[347341437,1735712185079,-3570.34,0.0001104,2]
[347341438,1735712185103,-500.0,0.0001104,2]
[347341439,1735712185126,-5308.07,0.0001104,2]
[347341440,1735712185151,-18872.65,0.0001104,2]
[347341441,1735712185175,-3795.06,0.0001104,2]
[347341442,1735712185198,-638.6,0.0001104,2]
[347341443,1735712185221,-3854.5,0.0001104,2]
[347341444,1735712185261,-1738.91,0.0001104,2]
[347341445,1735712185286,-3044.47,0.0001104,2]
[347341446,1735712185311,-2440.79,0.0001104,2]
[347341447,1735712185336,-927.64,0.0001104,2]
[347341448,1735712185360,-830.21,0.0001104,2]
[347341449,1735712185384,-1236.14,0.0001104,2]
[347341450,1735712185408,-1239.12,0.0001104,2]
[347341451,1735712185432,-3047.88,0.0001104,2]
[347341452,1735712185456,-505.43,0.0001104,2]
[347341453,1735712185480,-8244.76,0.0001104,2]
[347341454,1735712185504,-4568.01,0.0001104,2]
[347341455,1735712185528,-666.0,0.0001104,2]
[347341456,1735712185553,-666.0,0.0001104,2]
[347341457,1735712185577,-1054.0,0.00011041,2]
[347341458,1735712185601,-153.0,0.00011041,2]
[347341459,1735712185624,-500.0,0.00011041,2]
[347341460,1735712185654,-897.13,0.00011041,2]
[347341461,1735712185680,-500.0,0.00011041,2]
[347341462,1735712185706,-811.92,0.00011041,2]
[347341463,1735712185732,-2608.32,0.00011041,2]
[347341464,1735712185756,-1636.97,0.00011041,2]
[347341465,1735712185782,-500.0,0.00011041,2]
[347341466,1735712185806,-724.7,0.00011041,2]
[347341467,1735712185833,-1307.63,0.00011041,2]
[347341468,1735712185858,-1027.48,0.00011041,2]
[347341469,1735712185882,-870.26,0.00011041,2]
[347341470,1735712185908,-500.0,0.00011041,2]
[347341471,1735712185933,-1896.12,0.00011041,2]
[347341472,1735712185958,-516.97,0.00011041,2]
[347341473,1735712185983,-529.18,0.00011041,2]
[347341474,1735712186007,-500.0,0.00011041,2]
[347341475,1735712186033,-630.81,0.00011041,2]
[347341476,1735712186057,-500.0,0.00011041,2]
[347341477,1735712186082,-2138.07,0.00011041,2]
[347341478,1735712186106,-2190.65,0.00011041,2]
[347341479,1735712186129,-500.0,0.00011041,2]
[347341480,1735712186153,-500.0,0.00011041,2]
[347341481,1735712186177,-500.0,0.00011041,2]
[347341482,1735712186202,-686.45,0.00011041,2]
[347341483,1735712186226,-1981.09,0.00011041,2]
[347341484,1735712186249,-510.62,0.00011041,2]
[347341485,1735712186273,-500.0,0.00011041,2]
[347341486,1735712186296,-500.0,0.00011041,2]
[347341487,1735712186320,-748.67,0.00011041,2]
[347341488,1735712186342,-500.0,0.00011041,2]
[347341489,1735712186365,-500.0,0.00011041,2]
[347341490,1735712186389,-865.41,0.00011041,2]
[347341491,1735712186419,-1615.05,0.00011041,2]
[347341492,1735712186444,-500.0,0.00011041,2]
[347341493,1735712186469,-500.0,0.00011041,2]
[347341494,1735712186493,-500.0,0.00011041,2]
[347341495,1735712186517,-500.0,0.00011041,2]
[347341496,1735712186540,-2850.65,0.00011041,2]
[347341497,1735712186566,-1544.83,0.00011041,2]
[347341498,1735712186591,-639.45,0.00011041,2]
[347341499,1735712186615,-994.54,0.00011041,2]
[347341500,1735712186643,-1362.56,0.00011041,2]
[347341501,1735712186668,-1479.89,0.00011041,2]
[347341502,1735712186693,-1186.85,0.00011041,2]
[347341503,1735712186716,-2014.65,0.00011041,2]
[347341504,1735712186740,-548.58,0.00011041,2]
[347341505,1735712186763,-609.71,0.00011041,2]
[347341506,1735712186787,-500.0,0.00011041,2]
[347341507,1735712186811,-601.56,0.00011041,2]
[347341508,1735712186835,-500.0,0.00011041,2]
[347341509,1735712186858,-1040.86,0.00011041,2]
[347341510,1735712186882,-500.0,0.00011041,2]
[347341511,1735712186906,-500.0,0.00011041,2]
[347341512,1735712186930,-500.0,0.00011041,2]
[347341513,1735712186953,-500.0,0.00011041,2]
[347341514,1735712186978,-500.0,0.00011041,2]
[347341515,1735712187002,-500.0,0.00011041,2]
[347341516,1735712187031,-1161.65,0.00011041,2]
[347341517,1735712187055,-1667.73,0.00011041,2]
[347341518,1735712187080,-500.0,0.00011041,2]
[347341519,1735712187105,-500.0,0.00011041,2]
[347341520,1735712187129,-500.0,0.00011041,2]
[347341521,1735712187153,-500.0,0.00011041,2]
[347341522,1735712187176,-592.83,0.00011041,2]
[347341523,1735712187201,-500.0,0.00011041,2]
[347341524,1735712187224,-500.0,0.00011041,2]
[347341525,1735712187250,-500.0,0.00011041,2]
[347341526,1735712187275,-523.44,0.00011041,2]
[347341527,1735712187298,-761.38,0.00011041,2]
[347341528,1735712187323,-500.0,0.00011041,2]
[347341529,1735712187347,-500.0,0.00011041,2]
[347341530,1735712187373,-500.0,0.00011041,2]
[347341531,1735712187397,-1006.95,0.00011041,2]
[347341532,1735712187422,-666.0,0.00011041,2]
[347341533,1735712187447,-1759.33,0.00011041,2]
[347341534,1735712187473,-500.0,0.00011041,2]
[347341535,1735712187496,-596.51,0.00011041,2]
[347341536,1735712187519,-807.55,0.00011041,2]
[347341537,1735712187544,-948.66,0.00011041,2]
[347341538,1735712187571,-2932.55,0.00011041,2]
[347341539,1735712187607,-500.0,0.00011041,2]
[347341540,1735712187634,-1000.81,0.00011041,2]
[347341541,1735712187668,-1156.29,0.00011041,2]
[347341542,1735712187696,-909.53,0.00011041,2]
[347341543,1735712187721,-500.0,0.00011041,2]
[347341544,1735712187747,-1001.24,0.00011041,2]
[347341545,1735712187771,-500.0,0.00011041,2]
[347341546,1735712187795,-1807.13,0.00011041,2]
[347341547,1735712187819,-500.0,0.00011041,2]
[347341548,1735712187845,-500.0,0.00011041,2]
[347341549,1735712187870,-2008.06,0.00011041,2]
[347341550,1735712187895,-500.0,0.00011041,2]
[347341551,1735712187918,-1254.53,0.00011041,2]
[347341552,1735712187943,-1009.88,0.00011041,2]
[347341553,1735712187968,-500.0,0.00011041,2]
[347341554,1735712187993,-963.92,0.00011041,2]
[347341555,1735712188018,-1691.97,0.00011041,2]
[347341556,1735712188042,-627.26,0.00011041,2]
[347341557,1735712188066,-1400.01,0.00011041,2]
[347341558,1735712188091,-707.72,0.00011041,2]
[347341559,1735712188115,-500.0,0.00011041,2]
[347341560,1735712188139,-511.22,0.00011041,2]
[347341561,1735712188164,-1335.89,0.00011041,2]
[347341562,1735712188195,-500.0,0.00011041,2]
[347341563,1735712188219,-500.0,0.00011041,2]
[347341564,1735712188243,-808.47,0.00011041,2]
[347341565,1735712188268,-577.59,0.00011041,2]
[347341566,1735712188292,-500.0,0.00011041,2]
[347341567,1735712188317,-500.0,0.00011041,2]
[347341568,1735712188340,-680.92,0.00011041,2]
[347341569,1735712188367,-500.0,0.00011041,2]
[347341570,1735712188391,-500.0,0.00011041,2]
[347341571,1735712188415,-2073.15,0.00011041,2]
[347341572,1735712188439,-545.21,0.00011041,2]
[347341573,1735712188464,-970.01,0.00011041,2]
[347341574,1735712188487,-500.0,0.00011041,2]
[347341575,1735712188512,-500.0,0.00011041,2]
[347341576,1735712188536,-697.06,0.00011041,2]
[347341577,1735712188559,-616.09355935,0.00011041,2]
[347341578,1735712188583,-3018.7,0.00011041,2]
[347341579,1735712188606,-749.78,0.00011041,2]
[347341580,1735712188631,-552.39,0.00011041,2]
[347341581,1735712188654,-512.44,0.00011041,2]
[347341582,1735712188683,-1608.01,0.00011041,2]
[347341583,1735712189072,-774.59,0.00011041,2]
[347341584,1735712189097,-500.0,0.00011041,2]
[347341585,1735712189121,-534.853182,0.00011041,2]
[347341586,1735712189148,-544.06,0.00011041,2]
[347341587,1735712189176,-186.86585014,0.00011041,2]
[347341588,1735712189200,-500.0,0.00011041,2]
[347341589,1735712189225,-693.04,0.00011041,2]
[347341590,1735712189251,-500.0,0.00011041,2]
[347341591,1735712189276,-657.94,0.00011041,2]
[347341592,1735712189299,-573.15,0.00011041,2]
[347341593,1735712189323,-500.0,0.00011041,2]
[347341594,1735712189348,-2292.64,0.00011041,2]
[347341595,1735712189371,-705.39,0.00011041,2]
[347341596,1735712189396,-534.41,0.00011041,2]
[347341597,1735712189419,-500.0,0.00011041,2]
[347341598,1735712189443,-500.0,0.00011041,2]
[347341599,1735712189465,-500.0,0.00011041,2]
[347341600,1735712189489,-916.03,0.00011041,2]
[347341601,1735712189511,-553.66,0.00011041,2]
[347341602,1735712189534,-500.0,0.00011041,2]
[347341603,1735712189557,-500.0,0.00011041,2]
[347341604,1735712189579,-500.0,0.00011041,2]
[347341605,1735712189602,-158.19362986,0.00011041,2]
[347341606,1735712189624,-500.0,0.00011041,2]
[347341607,1735712189649,-696.4,0.00011041,2]
[347341608,1735712189672,-722.02,0.00011041,2]
[347341609,1735712189695,-500.0,0.00011041,2]
[347341610,1735712189720,-500.0,0.00011041,2]
[347341611,1735712189742,-500.0,0.00011041,7]
[347341612,1735712189766,-500.0,0.00011041,2]
[347341613,1735712189788,-2369.81,0.00011041,2]
[347341614,1735712189812,-723.92,0.00011041,2]
[347341615,1735712189835,-500.0,0.00011041,2]
[347341616,1735712189858,-2346.59,0.00011041,2]
[347341617,1735712189882,-500.0,0.00011041,2]
[347341618,1735712189906,-500.0,0.00011041,2]
[347341619,1735712189930,-2409.13,0.00011041,2]
[347341620,1735712189955,-500.0,0.00011041,2]
[347341621,1735712189980,-666.0,0.00011041,2]
[347341622,1735712190002,-500.0,0.00011041,2]
[347341623,1735712190025,-659.85,0.00011041,2]
[347341624,1735712190048,-1978.85,0.00011041,2]
[347341625,1735712190071,-500.0,0.00011041,2]
[347341626,1735712190094,-500.0,0.00011041,2]
[347341627,1735712190118,-637.2,0.00011041,2]
[347341628,1735712190142,-1086.64,0.00011041,2]
[347341629,1735712190166,-500.0,0.00011041,2]
[347341630,1735712190190,-928.01,0.00011041,2]
[347341631,1735712190214,-1305.3,0.00011041,2]
[347341632,1735712190238,-500.0,0.00011041,2]
[347341633,1735712190263,-500.0,0.00011041,2]
[347341634,1735712190287,-1663.47,0.00011041,2]
[347341635,1735712190309,-500.0,0.00011041,2]
[347341636,1735712190332,-666.0,0.00011041,2]
[347341637,1735712190354,-631.14,0.00011041,2]
[347341638,1735712190376,-500.0,0.00011041,2]
[347341639,1735712190399,-1717.34,0.00011041,2]
[347341640,1735712190422,-500.0,0.00011041,2]
[347341641,1735712190445,-500.0,0.00011041,2]
[347341642,1735712190468,-3165.69,0.00011041,2]
[347341643,1735712190492,-500.0,0.00011041,2]
[347341644,1735712190520,-1675.03,0.00011041,2]
[347341645,1735712190544,-500.0,0.00011041,2]
[347341646,1735712190566,-501.96,0.00011041,2]
[347341647,1735712190590,-1491.67,0.00011041,2]
[347341648,1735712190612,-158.18263017,0.00011041,2]
[347341649,1735712190638,-3205.8,0.00011041,2]
[347341650,1735712190665,-500.0,0.00011041,2]
[347341651,1735712190688,-1997.45,0.00011041,2]
[347341652,1735712190712,-870.48,0.00011041,2]
[347341653,1735712190737,-1371.17,0.00011041,2]
[347341654,1735712190759,-500.0,0.00011041,2]
[347341655,1735712190799,-533.03,0.00011041,2]
[347341656,1735712190823,-500.0,0.00011041,2]
[347341657,1735712190847,-500.0,0.00011041,2]
[347341658,1735712190871,-500.0,0.00011041,2]
[347341659,1735712190894,-2710.64,0.00011041,2]
[347341660,1735712190918,-686.29,0.00011041,2]
[347341661,1735712190944,-782.25,0.00011041,2]
[347341662,1735712190970,-1472.42,0.00011041,2]
[347341663,1735712190994,-500.0,0.00011041,2]
[347341664,1735712191018,-617.97,0.00011041,2]
[347341665,1735712191042,-1320.94,0.00011041,2]
[347341666,1735712191066,-891.99,0.00011041,2]
[347341667,1735712191090,-1162.73,0.00011041,2]
[347341668,1735712191113,-500.0,0.00011041,2]
[347341669,1735712191136,-1101.91,0.00011041,2]
[347341670,1735712191162,-1373.17,0.00011041,2]
[347341671,1735712191186,-2734.6,0.00011041,2]
[347341672,1735712191209,-2422.87,0.00011041,2]
[347341673,1735712191233,-500.0,0.00011041,2]
[347341674,1735712191257,-28444.16,0.00011041,2]
[347341675,1735712191281,-28444.16,0.00011041,2]
[347341676,1735712191305,-28444.16,0.00011041,2]
[347341677,1735712191329,-28444.16,0.00011041,2]
[347341678,1735712191353,-500.0,0.00011041,2]
[347341679,1735712191378,-28444.16,0.00011041,2]
[347341680,1735712191401,-664.3,0.00011041,2]
[347341681,1735712191426,-28444.16,0.00011041,2]
[347341682,1735712191453,-28444.16,0.00011041,2]
[347341683,1735712191478,-28444.16,0.00011041,2]
[347341684,1735712191503,-28444.16,0.00011041,2]
[347341685,1735712191527,-28444.16,0.00011041,2]
[347341686,1735712191552,-28444.16,0.00011041,2]
[347341687,1735712191577,-28444.16,0.00011041,2]
[347341688,1735712191602,-28444.16,0.00011041,2]
[347341689,1735712191628,-500.0,0.00011041,2]
[347341690,1735712191654,-28444.16,0.00011041,2]
[347341691,1735712191682,-28444.16,0.00011041,2]
[347341692,1735712191707,-28444.16,0.00011041,2]
[347341693,1735712191733,-28444.16,0.00011041,2]
[347341694,1735712191757,-703.31,0.00011041,2]
[347341695,1735712191782,-28444.16,0.00011041,2]
[347341696,1735712191808,-28444.16,0.00011041,2]
[347341697,1735712191834,-28444.16,0.00011041,2]
[347341698,1735712191859,-28444.16,0.00011041,2]
[347341699,1735712191887,-28444.16,0.00011041,2]
[347341700,1735712191912,-28444.16,0.00011041,2]
[347341701,1735712191938,-11249.50198634,0.00011041,2]
[347341702,1735712195047,1023.083972,0.00010819,2]
[347341703,1735712201870,-500.0,0.00011037,2]
[347341704,1735712201894,-692.61,0.00011037,2]
[347341705,1735712201917,-536.65,0.00011038,2]
[347341706,1735712201941,-1663.46,0.00011039,2]
[347341707,1735712201964,-5307.26,0.00011039,2]
[347341708,1735712201989,-500.0,0.00011039,2]
[347341709,1735712202012,-500.0,0.00011039,2]
[347341710,1735712202036,-1162.51,0.00011039,2]
[347341711,1735712202060,-1265.41,0.00011039,2]
[347341712,1735712202086,-493.41,0.0001104,2]
[347341713,1735712202108,-4980.89843729,0.00011041,2]
[347341714,1735712202133,-982397.79156271,0.00011041,2]
[347341715,1735712227174,1049.73376857,0.0001082,2]
[347341716,1735712305655,164.90150479,0.00010939,2]
[347341717,1735712328480,95231.05232789,0.00010897,2]
[347341718,1735712366393,150.0,0.00010921,2]
[347341719,1735712366448,150.0,0.00011004,2]
[347341720,1735712366491,150.0,0.00010854,2]
[347341721,1735712366524,150.0,0.00010898,2]
[347341722,1735712366584,150.0,0.00010925,2]
[347341723,1735712366666,150.0,0.00010891,2]
[347341724,1735712366725,150.0,0.00010857,2]
[347341725,1735712366775,150.0,0.00010843,2]
[347341726,1735712366815,150.0,0.00010906,2]
[347341727,1735712366856,150.0,0.00010909,2]
[347341728,1735712366903,150.0,0.00010879,2]
[347341729,1735712366948,150.0,0.00010928,2]
[347341730,1735712366999,150.0,0.00010808,2]
[347341731,1735712367032,150.0,0.00010972,2]
[347341732,1735712367076,150.0,0.00010826,2]
[347341733,1735712367123,150.0,0.00010887,2]
[347341734,1735712367214,150.0,0.00010833,2]
[347341735,1735712367325,150.0,0.00010964,2]
[347341736,1735712392665,381.65,0.00010064,2]
[347341737,1735712433870,192.045,0.0001049,2]
[347341738,1735712480832,23900.0,0.00010064,2]
[347341739,1735712495050,1000.0,0.00010077,2]
[347341740,1735712548735,463.23027,0.0001093,2]
[347341741,1735712595409,164.90150479,0.00010938,2]
[347341742,1735712661218,980.98196319,0.00010935,2]
[347341743,1735712661527,980.98196319,0.00010937,2]
[347341744,1735712680257,250.0,0.00010079,2]
[347341745,1735712703192,150.0,0.00010652,2]
[347341746,1735712706006,150.0,0.00010652,2]
[347341747,1735712713433,150.0,0.00010652,2]
[347341748,1735712716467,155.95,0.00010983,2]
[347341749,1735712719946,4857.73368331,9e-05,2]
[347341750,1735712729588,144914.84940362,9e-05,2]
[347341751,1735712731769,5308.53995567,0.0001,2]
[347341752,1735712736410,28000.0,8e-05,2]
[347341754,1735712754158,4607.82682862,6.94e-05,2]
[347341755,1735712762086,10010.79377231,9.8e-05,2]
[347341756,1735712767204,11042.11001854,7e-05,2]
[347341757,1735712838801,248.2904798,0.000101,2]
[347341758,1735712850118,164.90150479,0.00010937,2]
[347341759,1735712857086,4505.12385886,0.0001,2]
[347341760,1735712859157,2000.0,0.00010075,2]
[347341761,1735712862758,153.0,0.00010995,2]
[347341762,1735712873047,52386.70166085,0.0001,2]
[347341763,1735712873708,1108.38434982,0.00010775,2]
[347341764,1735712873803,22655.65896501,0.0001,2]
[347341765,1735712911940,2612.9121775,0.0001,2]
[347341767,1735712923542,153.0,0.00010995,2]
[347341768,1735712945173,1071.90666292,0.00010775,2]
[347341769,1735712986796,153.0,0.00010995,2]
[347341770,1735713026263,150.0,0.00010947,2]
[347341771,1735713026346,150.0,0.00010858,2]
[347341974,1735713040248,-150.0,0.0001102,2]
[347341975,1735713040257,-492.09,0.00011022,2]
[347341976,1735713040266,-490.8,0.00011023,2]
[347341977,1735713040275,-502.7,0.00011025,2]
[347341978,1735713040284,-500.04,0.00011029,2]
[347341979,1735713040293,-179.301,0.00011029,2]
[347341980,1735713040301,-2372.766,0.00011029,2]
[347341981,1735713040310,-3149.0334029,0.00011035,2]
[347341982,1735713040319,-300.0,0.00011035,2]
[347341983,1735713040328,-8937.96,0.00011036,2]
[347341984,1735713040338,-150.99,0.00011036,2]
[347341985,1735713040347,-1535.98,0.00011036,2]
[347341986,1735713040356,-299.99,0.00011036,2]
[347341987,1735713040365,-1492.8,0.00011036,2]
[347341988,1735713040375,-818.75,0.00011036,2]
[347341989,1735713040386,-3304.83,0.00011036,2]
[347341990,1735713040395,-575.55,0.00011036,2]
[347341991,1735713040405,-1650.76,0.00011036,2]
[347341992,1735713040414,-5852.89,0.00011036,2]
[347341993,1735713040423,-3037.61,0.00011036,2]
[347341994,1735713040433,-8270.0,0.00011036,2]
[347341995,1735713040441,-3833.57,0.00011036,2]
[347341996,1735713040450,-6911.24,0.00011036,2]
[347341997,1735713040459,-2514.78,0.00011036,2]
[347341998,1735713040468,-1239.47,0.00011036,2]
[347341999,1735713040477,-9318.77,0.00011036,2]
[347342000,1735713040486,-4658.31,0.00011036,2]
[347342002,1735713040495,-2052.65,0.00011036,2]
[347342004,1735713040504,-11155.5,0.00011036,2]
[347342005,1735713040514,-4261.4,0.00011036,2]
[347342007,1735713040522,-5288.66,0.00011036,2]
[347342009,1735713040531,-9380.9,0.00011036,2]
[347342010,1735713040540,-2873.49,0.00011036,2]
[347342012,1735713040549,-14824.6,0.00011036,2]
[347342014,1735713040558,-9496.9,0.00011036,2]
[347342016,1735713040568,-500.0,0.00011036,2]
[347342017,1735713040577,-500.0,0.00011036,2]
[347342018,1735713040586,-1338.66,0.00011036,2]
[347342019,1735713040595,-3640.07,0.00011036,2]
[347342020,1735713040604,-966.52,0.00011036,2]
[347342021,1735713040613,-798.26,0.00011036,2]
[347342022,1735713040622,-3622.4,0.00011036,2]
[347342023,1735713040631,-500.0,0.00011037,2]
[347342024,1735713040640,-500.0,0.00011037,2]
[347342025,1735713040649,-500.0,0.00011037,2]
[347342026,1735713040658,-500.0,0.00011037,2]
[347342027,1735713040667,-500.0,0.00011037,2]
[347342028,1735713040677,-1216.44,0.00011037,2]
[347342029,1735713040687,-500.0,0.00011037,2]
[347342030,1735713040696,-1236.04,0.00011037,2]
[347342031,1735713040705,-500.0,0.00011037,2]
[347342032,1735713040714,-936.25,0.00011037,2]
[347342033,1735713040724,-500.0,0.00011037,2]
[347342034,1735713040733,-2098.73,0.00011037,2]
[347342035,1735713040742,-562.13,0.00011037,2]
[347342036,1735713040751,-500.0,0.00011037,2]
[347342037,1735713040761,-500.0,0.00011037,2]
[347342038,1735713040771,-500.0,0.00011037,2]
[347342039,1735713040781,-559.25,0.00011037,2]
[347342040,1735713040790,-500.0,0.00011037,2]
[347342041,1735713040799,-500.0,0.00011037,2]
[347342042,1735713040808,-655.54,0.00011037,2]
[347342043,1735713040818,-800.76,0.00011037,2]
[347342044,1735713040828,-2122.85,0.00011037,2]
[347342045,1735713040838,-3341.78,0.00011037,2]
[347342046,1735713040849,-850.09,0.00011037,2]
[347342047,1735713040859,-500.0,0.00011037,2]
[347342048,1735713040869,-1100.4,0.00011037,2]
[347342049,1735713040880,-715.49,0.00011037,2]
[347342050,1735713040890,-1204.89,0.00011037,2]
[347342051,1735713040899,-512.38,0.00011037,2]
[347342052,1735713040907,-630.36,0.00011037,2]
[347342053,1735713040916,-500.0,0.00011037,2]
[347342054,1735713040926,-4668.66,0.00011037,2]
[347342055,1735713040935,-618.64,0.00011037,2]
[347342056,1735713040944,-500.0,0.00011037,2]
[347342057,1735713040953,-425.79705312,0.00011037,2]
[347342058,1735713040962,-500.0,0.00011037,2]
[347342059,1735713040972,-500.0,0.00011037,2]
[347342060,1735713040981,-531.2,0.00011037,2]
[347342061,1735713040990,-500.0,0.00011037,2]
[347342062,1735713040999,-500.0,0.00011037,2]
[347342063,1735713041008,-675.15,0.00011037,2]
[347342064,1735713041018,-500.0,0.00011037,2]
[347342065,1735713041027,-545.77,0.00011037,2]
[347342066,1735713041037,-608.11,0.00011037,2]
[347342067,1735713041051,-500.0,0.00011037,2]
[347342068,1735713041061,-1086.68,0.00011037,2]
[347342069,1735713041071,-500.0,0.00011037,2]
[347342070,1735713041080,-1768.65,0.00011037,2]
[347342071,1735713041089,-500.0,0.00011037,2]
[347342072,1735713041098,-7413.13,0.00011037,2]
[347342073,1735713041107,-500.0,0.00011037,2]
[347342074,1735713041118,-1004.93,0.00011037,2]
[347342075,1735713041128,-500.0,0.00011037,2]
[347342076,1735713041137,-500.0,0.00011037,2]
[347342077,1735713041146,-500.0,0.00011037,2]
[347342078,1735713041155,-573.7,0.00011037,2]
[347342079,1735713041163,-500.0,0.00011037,2]
[347342080,1735713041172,-4525.96,0.00011037,2]
[347342081,1735713041181,-1518.74,0.00011037,2]
[347342082,1735713041192,-500.0,0.00011037,2]
[347342083,1735713041201,-650.91,0.00011037,2]
[347342084,1735713041209,-1142.54,0.00011037,2]
[347342085,1735713041219,-943.29,0.00011037,2]
[347342086,1735713041228,-500.0,0.00011037,2]
[347342087,1735713041237,-500.0,0.00011037,2]
[347342088,1735713041246,-877.88,0.00011037,2]
[347342089,1735713041255,-500.0,0.00011037,2]
[347342090,1735713041264,-500.0,0.00011037,2]
[347342091,1735713041273,-3533.88,0.00011037,2]
[347342092,1735713041282,-743.19,0.00011037,2]
[347342093,1735713041291,-3026.212117,0.00011037,2]
[347342094,1735713041300,-500.0,0.00011037,2]
[347342095,1735713041309,-902.28,0.00011037,2]
[347342096,1735713041318,-500.0,0.00011037,2]
[347342097,1735713041327,-668.73,0.00011037,2]
[347342098,1735713041335,-2067.15,0.00011037,2]
[347342099,1735713041344,-507.24,0.00011037,2]
[347342100,1735713041353,-2170.8093,0.00011037,2]
[347342101,1735713041363,-962.14,0.00011037,2]
[347342102,1735713041372,-500.0,0.00011037,2]
[347342103,1735713041382,-155.317428,0.00011037,2]
[347342104,1735713041391,-544.4,0.00011037,2]
[347342105,1735713041400,-158.523011,0.00011037,2]
[347342106,1735713041410,-533.6,0.00011037,2]
[347342107,1735713041419,-500.0,0.00011037,2]
[347342108,1735713041428,-500.0,0.00011037,2]
[347342109,1735713041439,-500.0,0.00011037,2]
[347342110,1735713041448,-1280.82,0.00011037,2]
[347342111,1735713041457,-674.85,0.00011037,2]
[347342112,1735713041466,-500.0,0.00011037,2]
[347342113,1735713041475,-500.0,0.00011037,2]
[347342114,1735713041484,-17384.6,0.00011037,2]
[347342115,1735713041493,-1141.61,0.00011037,2]
[347342116,1735713041503,-500.0,0.00011037,2]
[347342117,1735713041511,-500.0,0.00011037,2]
[347342118,1735713041520,-500.0,0.00011037,2]
[347342119,1735713041529,-2665.97,0.00011037,2]
[347342120,1735713041538,-699.14,0.00011037,2]
[347342121,1735713041547,-500.0,0.00011037,2]
[347342122,1735713041556,-500.0,0.00011037,2]
[347342123,1735713041565,-913.56,0.00011037,2]
[347342124,1735713041577,-771.29,0.00011037,2]
[347342125,1735713041586,-1458.67,0.00011037,2]
[347342126,1735713041595,-500.0,0.00011037,2]
[347342127,1735713041605,-500.0,0.00011037,2]
[347342128,1735713041614,-633.4,0.00011037,2]
[347342129,1735713041623,-500.0,0.00011037,2]
[347342130,1735713041632,-2333.57,0.00011037,2]
[347342131,1735713041641,-500.0,0.00011037,2]
[347342132,1735713041650,-1163.78,0.00011037,2]
[347342133,1735713041659,-970.35,0.00011037,2]
[347342134,1735713041668,-977.85,0.00011037,2]
[347342135,1735713041677,-500.0,0.00011037,2]
[347342136,1735713041687,-500.0,0.00011037,2]
[347342137,1735713041696,-959.21,0.00011037,2]
[347342138,1735713041705,-1468.86,0.00011037,2]
[347342139,1735713041714,-1647.33,0.00011037,2]
[347342140,1735713041723,-500.0,0.00011037,2]
[347342141,1735713041733,-1932.97,0.00011037,2]
[347342142,1735713041742,-500.0,0.00011037,2]